Cogmind - Beta 14 @@@ ROGUE MODE // 2024.11.25 @ 21:59:10 Player: Vineheart01 Result: Destroyed by Y-45 Defender with Heavy Assault Rifle Performance ------------- Evolutions (1) 500 Regions Visited (2) 400 Robots Destroyed (40) 200 Value Destroyed (785) 785 Prototype IDs (0) 0 Alien Tech Used (0) 0 Bonus (0) 0 TOTAL SCORE: 1885 Bonus ------- None Cogmind --------- Core Integrity 0/400 Matter 69/300 Energy 80/100 System Corruption 0% Temperature Cool (9) Movement Hovering (120) Ox1 Location -9/Materials Parts ------- > --- POWER (1) -------- (None) > --- PROPULSION (3) --- Hover Unit > --- UTILITY (3) ------ Medium Storage Unit Targeting Computer > --- WEAPON (2) ------- (None) > --- INVENTORY (10) --- Cooling System Small Storage Unit Light Armor Plating Peak State ------------ > --- POWER ------------ Ion Engine > --- PROPULSION ------- Light Treads Light Treads > --- UTILITY ---------- Huge Storage Unit Improved Terrain Scanner > --- WEAPON ----------- Small Laser Light Assault Rifle > --- INVENTORY -------- Ion Engine Aluminum Leg Aluminum Leg Improved Heat Sink Small Storage Unit Seismic Detector Small Laser Small Laser Small Laser Small Laser [Rating: 10] Favorites ----------- Power Ion Engine Engine Ion Engine Propulsion Aluminum Leg Treads Light Treads Leg Aluminum Leg Utility Huge Storage Unit Device Improved Terrain Scanner Storage Huge Storage Unit Processor Targeting Computer Protection Light Armor Plating Weapon Grenade Launcher Energy Gun Small Laser Ballistic Gun Light Assault Rifle Launcher Grenade Launcher Special Weapon Plasma Cutter Build | -11 -10 -9 ------- Run | Yrd Mat Mat Slots Evolved 2 | . . 2 Power . | . . . Propulsion 1 | . . 1 Utility 1 | . . 1 Weapon . | . . . Parts Attached 34 | 8 15 11 Power 4 | 1 2 1 Engine 4 | 1 2 1 Core . | . . . Reactor . | . . . Propulsion 9 | 2 4 3 Treads 2 | 2 . . Leg 6 | . 4 2 Wheel . | . . . Hover 1 | . . 1 Flight . | . . . Utility 10 | 3 5 2 Device 2 | 2 . . Storage 6 | 1 4 1 Processor 1 | . . 1 Hackware . | . . . Protection 1 | . 1 . Artifact . | . . . Weapon 11 | 2 4 5 Energy Gun 3 | 1 2 . Energy Cannon . | . . . Ballistic Gun 1 | 1 . . Ballistic Cannon . | . . . Launcher 6 | . 2 4 Special Weapon 1 | . . 1 Impact Weapon . | . . . Slashing Weapon . | . . . Piercing Weapon . | . . . Special Melee Weapon . | . . . Unidentified Prototypes . | . . . Parts Lost 19 | . 7 12 Power 3 | . 1 2 Propulsion 7 | . 3 4 Utility 2 | . 1 1 Weapon 7 | . 2 5 Highest Loss Streak 12 | . 3 12 To Critical Strikes 1 | . 1 . Average Slot Usage (%) 90 | . 90 81 Engine 9 | . 9 6 Treads 10 | . 11 . Leg 16 | . 15 25 Device 4 | . 4 . Storage 18 | . 18 21 Processor 1 | . . 11 Protection 1 | . 1 . Energy Gun 8 | . 9 . Ballistic Gun 5 | . 6 . Launcher 12 | . 12 15 Peak Build Rating 10 | 9 10 9 Average Rating 7 | 5 7 7 On Entrance 5 | . 9 8 Naked Turns . | . . . Heaviest Build 89 | 13 89 25 Greatest Support 40 | 40 40 30 Greatest Overweight (x) 8 | . 8 4 Average Overweight (x) . | . 1 . Largest Inventory Capacity 25 | 8 25 10 Average Capacity 17 | 7 18 9 Most Carried 10 | 4 10 7 Average Carried 7 | 2 8 5 Final Capacity 10 | 8 8 10 Final Carried 8 | 4 8 3 Class Distribution -------------------- 100% | Mutant Dominant Class ---------------- Mutant | -10/Materials Mutant | -9/Materials Resources | -11 -10 -9 ----------- Run | Yrd Mat Mat Matter Collected 795 | 258 471 66 Remotely . | . . . Salvage Created 956 | 44 714 198 Parts 59 | 6 38 15 Haulers Intercepted 2 | . 1 1 Recyclers Shooed . | . . . Parts Field Recycled . | . . . Retrieved Matter . | . . . Parts Self-Destructed . | . . . Prevented . | . . . Kills | -11 -10 -9 ------- Run | Yrd Mat Mat Combat Hostiles Destroyed 23 | . 13 10 Guns 12 | . 12 . AOE 11 | . 1 10 Classes Destroyed 10 | 1 8 1 Worker 2 | . 2 . Builder 2 | . 2 . Tunneler 3 | 3 . . Hauler 2 | . 1 1 Recycler 3 | . 3 . Operator 1 | . 1 . Watcher 4 | . 3 1 Swarmer 10 | . 6 4 Grunt 11 | . 7 4 Sentry 2 | . . 2 Best Kill Streak 12 | 2 5 12 Combat Bots Only 5 | . 5 5 Max Kills in Single Turn 4 | 1 4 4 Gunslinging . | . . . Exploded 4 | . 1 4 Melee . | . . . Uniques/NPCs Destroyed . | . . . Combat | -11 -10 -9 -------- Run | Yrd Mat Mat Hostile Shots Fired 229 | . 110 119 Missed 56 | . 21 35 Damage Taken 2300 | . 1083 1217 Core 643 | . 239 404 Absorbed by Shields . | . . . Regen/Repaired (Parts) 27 | . 27 . Core Remaining (%) 52 | 100 4 . Volleys Fired 86 | 7 67 12 Largest 2 | 2 2 2 Hottest 80 | 60 80 60 Shots Fired 164 | 14 127 23 Gun 127 | 14 113 . Cannon . | . . . Launcher 37 | . 14 23 Special . | . . . Kinetic 50 | 7 43 . Thermal 77 | 7 70 . Explosive 37 | . 14 23 Electromagnetic . | . . . Robot Hit Streak 15 | 5 15 8 Robot Miss Streak 5 | 1 5 2 Penetration Max . | . . . Secondary Targets 3 | . 3 . Max Gunslinging Chain 1 | . 1 . Shots Hit Robots 101 | 10 79 12 Core Hits 65 | 3 40 22 Critical Kills . | . . . Critical Parts Destroyed . | . . . Critical Strikes . | . . . Melee Attacks . | . . . Impact . | . . . Slashing . | . . . Piercing . | . . . Sneak Attacks . | . . . Combat Hostiles . | . . . Follow-up Attacks . | . . . Damage Inflicted 2555 | 110 1644 801 Guns 868 | 110 758 . Cannons . | . . . Explosions 1667 | . 866 801 Melee . | . . . Ramming 20 | . 20 . Kinetic 265 | 30 235 . Thermal 603 | 80 523 . Explosive 1667 | . 866 801 Electromagnetic . | . . . Impact . | . . . Slashing . | . . . Piercing . | . . . Highest Corruption . | . . . Average Corruption . | . . . Corruption Purged . | . . . Corruption Blocked . | . . . Overload Shots . | . . . Overflow Damage 140 | . 140 . Projectiles . | . . . Explosions 140 | . 140 . Melee . | . . . Knockbacks . | . . . Impact . | . . . Kinetic . | . . . Secondary . | . . . Self-Inflicted Damage 166 | . 157 9 Shots 8 | . 5 3 Rammed 1 | . 1 . Targets Rammed 4 | . 4 . Kicked 3 | . 3 . Crushed . | . . . Highest Temperature 150 | 40 150 19 Average Temperature 38 | 16 44 6 Received Heat Transfer 801 | . 384 417 Siege Activations . | . . . Robots Corrupted . | . . . Combat Hostiles . | . . . Parts Fried . | . . . Impact Corruptions . | . . . Robots Melted . | . . . Combat Hostiles . | . . . Parts Melted 2 | . 2 . Heat Transferred 1350 | 175 1175 . Parts Sabotaged . | . . . Parts Stolen . | . . . Parts Stripped . | . . . Power Chain Reactions . | . . . Alert | -11 -10 -9 ------- Run | Yrd Mat Mat Peak Influence 397 | 15 242 397 Initial 29 | . 9 29 Average 82 | 4 79 167 Maximum Alert Level 1 | . 1 1 Low Security (%) 92 | 100 95 56 Level 1 7 | . 4 43 Level 2 . | . . . Level 3 . | . . . Level 4 . | . . . Level 5 . | . . . High Security . | . . . Max Security . | . . . Squads Dispatched 2 | . 1 1 Investigation . | . . . Extermination . | . . . Reinforcement 2 | . 1 1 Assault . | . . . Garrison . | . . . Intercept . | . . . Searches Triggered . | . . . Construction Impeded . | . . . Haulers Reinforced . | . . . Active Scanning Responses . | . . . Cargo Convoy Interrupts . | . . . Stealth | -11 -10 -9 --------- Run | Yrd Mat Mat Distress Signals 3 | . 1 2 Communications Jammed . | . . . Distress Signals . | . . . Times Spotted 35 | . 21 14 Peak Tracking Total 8 | . 4 8 Tactical Retreats 1 | . . 1 Traps | -11 -10 -9 ------- Run | Yrd Mat Mat Traps Triggered . | . . . Indirectly . | . . . Trap Hack Attempts . | . . . Triggered . | . . . Disarmed 4 | . 4 . Reprogrammed . | . . . Reused . | . . . Traps Extracted . | . . . Installed . | . . . Triggered . | . . . Machines | -11 -10 -9 ---------- Run | Yrd Mat Mat Machines Disabled 6 | . 6 . Max in Single Turn 3 | . 3 . Machines Repaired . | . . . Machines Dismantled . | . . . Machines Sabotaged . | . . . Overloaded Fab Kills . | . . . Hacking | -11 -10 -9 --------- Run | Yrd Mat Mat Machines Accessed 9 | . 8 1 Terminals 7 | . 6 1 Fabricators . | . . . Repair Stations 1 | . 1 . Recycling Units 1 | . 1 . Scanalyzers . | . . . Garrison Access . | . . . Total Hacks 19 | . 18 1 Successful 14 | . 13 1 Failed 5 | . 5 . Catastrophic 2 | . 2 . Database Lockouts . | . . . Manual . | . . . Terminals 13 | . 12 1 Fabricators . | . . . Repair Stations 2 | . 2 . Recycling Units 4 | . 4 . Scanalyzers . | . . . Garrison Access . | . . . Terminal Hacks 8 | . 7 1 Emergency Access Points 1 | . . 1 Alert Level 1 | . 1 . Unreport Threat 1 | . 1 . Locate Traps 1 | . 1 . Disarm Traps 1 | . 1 . Hauler Manifests 1 | . 1 . Registered Components 1 | . 1 . Zone Layout 1 | . 1 . Fabricator Hacks . | . . . Repair Station Hacks 2 | . 2 . Scan Component 1 | . 1 . Repair 1 | . 1 . Recycling Unit Hacks 4 | . 4 . Recycle Component 1 | . 1 . Process 1 | . 1 . Report Inventory 1 | . 1 . Retrieve Matter 1 | . 1 . Scanalyzer . | . . . Garrison Access Hacks . | . . . Unauthorized Hacks . | . . . Terminals . | . . . Fabricators . | . . . Repair Stations . | . . . Recycling Units . | . . . Scanalyzers . | . . . Garrison Access . | . . . Data Cores Recovered . | . . . Used . | . . . Hacking Detections 8 | . 7 1 Full Trace Events . | . . . Feedback Events . | . . . Feedback Blocked . | . . . Robot Schematics Acquired . | . . . Robots Built . | . . . Authchips . | . . . Time . | . . . Total Robot Build Rating . | . . . Part Schematics Acquired . | . . . Parts Built . | . . . Authchips . | . . . Time . | . . . Total Part Build Rating . | . . . Parts Repaired 1 | . 1 . Time 26 | . 26 . Parts Recycled 1 | . 1 . Recycled Matter 80 | . 80 . Retrieved Matter 80 | . 80 . Retrieved Components . | . . . Parts Scanalyzed . | . . . Part Schematics Acquired . | . . . Parts Damaged . | . . . Bothacking | -11 -10 -9 ------------ Run | Yrd Mat Mat Used RIF Installer . | . . . Robots Hacked . | . . . Non-combat . | . . . Combat . | . . . Robot Hacks Applied . | . . . Relay Couplers Released . | . . . Fabnet Peak Effective % . | . . . Robots Rewired . | . . . Allies Hacked . | . . . Hacks Repelled . | . . . Allies | -11 -10 -9 -------- Run | Yrd Mat Mat Total Allies . | . . . Largest Group . | . . . Highest-Rated Group . | . . . Highest-Rated Ally . | . . . Total Orders . | . . . Ally Attacks . | . . . Total Damage . | . . . Kills . | . . . Allies Corrupted . | . . . Allies Melted . | . . . Intel | -11 -10 -9 ------- Run | Yrd Mat Mat Robot Analysis Total . | . . . Derelict Logs Recovered . | . . . Drone Launches . | . . . Drone Recoveries . | . . . Exploration | -11 -10 -9 ------------- Run | Yrd Mat Mat Turns Passed 2342 | 147 1985 210 Spaces Moved 957 | 72 767 118 Core 15 | 2 . 13 Treads 299 | 70 229 . Legs 643 | . 538 105 Wheels . | . . . Hover . | . . . Flight . | . . . Fastest Speed 50 | 50 120 120 Average Speed 197 | 156 210 137 Slowest Speed 680 | 160 680 250 Overloaded Moves . | . . . Propulsion Burnouts . | . . . Robots Hopped . | . . . Cave-ins Triggered . | . . . Exploration Rate (%) 41 | 5 95 23 Regions Visited 2 Branch Regions . Pre-discovered Areas . | . . . Known Exits Taken . | . . . Unknown Exits Taken 2 | 1 1 . Scrap Searched . | . . . Spaces Dug 19 | . . 19 Terrain Destroyed 198 | . 102 96 Melee . | . . . Projectile . | . . . AOE 198 | . 102 96 Terrain Rammed . | . . . Walls Destroyed . | . . . Machines Disabled . | . . . Actions | -11 -10 -9 --------- Run | Yrd Mat Mat Total 1248 | 90 1016 142 Wait 137 | . 137 . Move 955 | 71 766 118 Hop . | . . . Pick Up 19 | 4 15 . Fast Attach 14 | 7 5 2 Attach 12 | . 5 7 Detach 1 | . . 1 Swap 8 | 1 5 2 Drop 9 | . 9 . Fire 86 | 7 67 12 Melee . | . . . Ram . | . . . Kick 3 | . 3 . Crush 1 | . 1 . Escape Stasis . | . . . Rewire 3 | . 3 . Trap . | . . . Miscellaneous . | . . . Route ------- -11/Scrapyard -10/Materials (discovered 5 exits: *Mat x3 / [*Min x2]) -9/Materials (discovered 1 exit: [*Min]) History --------- Turn | Location | Event 20 | -11/Scrapyard | Discovered new exit (range 15) 148 | -11/Scrapyard | Entered Materials 256 | -10/Materials | Discovered new exit (range 10) 315 | -10/Materials | Build established: Mutant 618 | -10/Materials | Discovered new exit (range 10) 860 | -10/Materials | Discovered new exit (range 15) 988 | -10/Materials | Core integrity fell below 50% 1024 | -10/Materials | Lost 3 parts (2n1w) 1046 | -10/Materials | Core integrity fell below 20% 1594 | -10/Materials | Discovered new exit (range 13) 1891 | -10/Materials | Repaired Hcp. Matter Pod 1912 | -10/Materials | Discovered new exit (range 15) 2133 | -10/Materials | Entered another Materials area 2133 | -9/Materials | Evolved 2 slots: Propulsion x1, Utility x1 2269 | -9/Materials | Discovered new exit (range 14) 2322 | -9/Materials | Core integrity fell below 50% 2334 | -9/Materials | Core integrity fell below 20% 2343 | -9/Materials | Destroyed by Y-45 Defender with Heavy Assault Rifle Last Messages --------------- U-05 Engineer builds a Wall. Critical hit (Burn: +37). Plasma Cutter destroyed. The unstable cave ceiling collapses. Aluminum Leg destroyed. Grenade Launcher destroyed. The unstable cave ceiling collapses. Grenade Launcher destroyed. Aluminum Leg destroyed. The unstable cave ceiling collapses. K-01 Serf cleans the Integration Channel. K-01 Serf cleans the Recycling Unit. K-01 Serf collects debris. K-01 Serf cleans the Recycling Unit. K-01 Serf collects debris. Hcp. Matter Pod destroyed. K-01 Serf collects debris. Acquired 11 matter. K-01 Serf collects debris. Acquired Hover Unit. Map ----- +----------------------------------------------------+ | ????????????? # # ##### ### ? | | ????????????? # | | ?????????????# ### | | ?????????????# ## | | ?????????????# ### #+ ###### ? | | ?????????????# #?# # # #???? | | ?????????????# #?## #???? | | ??##########?# ##### # #???? | | ??# ## = #???? | | ??# # [%=%[ *=# #???? | | ??# % a * * # # #####? ? | | ??# % ***####### | | ??# ** = | | ??# * Y * =k ^ ^ | | ??# "T" """ """ ??? | | ??# ## ^ """""??????? | | ??##### ##### Y ""??????? | | ??????#?????# | ?????? | | ???????????## ????? | | ???????????# ???? | | ???????????## *%# #"Y"#####+####/#??? | | ???????????# k #"""#????! ??????? | | ???????????## k #####?????/ ?????? | | ????????????# !